bitfinex-derivatives/quotes_ETHF0:USTF0_20260222
["timestamp","ask_amount","ask_price","bid_price","bid_amount"]
[1771780442310,0.99274778,1949.7,1949.3,0.98461023]
[1771780442505,5.79188889,1949.6,1949.3,0.98461023]
[1771780442704,0.99274778,1949.7,1949.3,0.98461023]
[1771780443008,5.79188889,1949.6,1949.3,0.98461023]
[1771780443207,0.99274778,1949.7,1949.3,0.98461023]
[1771780443405,5.79468853,1949.6,1949.3,0.98461023]
[1771780443609,0.99274778,1949.7,1949.3,0.98461023]
[1771780443914,5.79468853,1949.6,1949.3,0.98461023]
[1771780444111,0.99274778,1949.7,1949.3,0.98461023]
[1771780444307,5.79474542,1949.6,1949.3,0.98461023]
[1771780444512,0.99274778,1949.7,1949.3,0.98461023]
[1771780444712,5.79481472,1949.6,1949.3,0.98461023]
[1771780444911,0.99274778,1949.7,1949.3,0.98461023]
[1771780445112,5.79481705,1949.6,1949.3,0.98461023]
[1771780445312,0.99274778,1949.7,1949.3,0.98461023]
[1771780445513,5.79492826,1949.6,1949.3,0.98461023]
[1771780445714,0.99274778,1949.7,1949.3,0.98461023]
[1771780445915,5.79492743,1949.6,1949.3,0.98461023]
[1771780446118,0.99274778,1949.7,1949.3,0.98461023]
[1771780446415,5.79501297,1949.6,1949.3,0.98461023]
[1771780446614,0.99274778,1949.7,1949.3,0.12308361]
[1771780446914,0.99274778,1949.5,1949.2,0.98088305]
[1771780447609,0.99274778,1949.5,1949.2,0.98582383]
[1771780448520,0.99274778,1949.5,1949.2,0.00494078]
[1771780448916,0.9817963,1949.3,1949.0,4.77412021]
[1771780449112,0.9817963,1949.3,1949.0,3.8248]
[1771780449315,0.9817963,1949.3,1949.0,4.77412021]
[1771780449914,0.9817963,1949.3,1949.0,4.77820265]
[1771780451017,0.9817963,1949.3,1949.0,0.95340265]
[1771780453019,0.9817963,1949.3,1949.0,0.00408244]
[1771780456122,0.9076017,1949.1,1949.0,0.00408244]
[1771780456722,0.9076017,1949.1,1948.8,4.23372021]
[1771780456922,0.9076017,1949.1,1948.8,3.2844]
[1771780457919,0.9076017,1949.1,1948.8,3.29008591]
[1771780460719,0.9076017,1949.1,1948.8,4.22635802]
[1771780460919,0.9076017,1949.3,1948.9,0.93627211]
[1771780461123,6.69615441,1949.2,1948.9,0.93627211]
[1771780461322,0.9076017,1949.3,1948.9,0.93627211]
[1771780461521,5.78792132,1949.2,1948.9,0.93627211]
[1771780461724,0.9076017,1949.3,1948.9,0.93627211]
[1771780462023,6.69555333,1949.2,1948.9,0.93627211]
[1771780462218,6.69555333,1949.2,1948.8,4.46952261]
[1771780462219,0.9076017,1949.2,1948.8,4.22635802]
[1771780462424,0.9076017,1949.2,1948.8,3.29008591]
[1771780466828,0.9076017,1949.0,1948.8,3.29008591]
[1771780468134,0.9076017,1949.0,1948.8,4.22635802]
[1771780468335,0.9076017,1949.2,1948.8,4.22635802]
[1771780469138,0.9076017,1949.0,1948.8,3.29008591]
[1771780470940,0.9076017,1949.0,1948.8,4.22635802]
[1771780471332,1.1794367,1949.3,1948.8,4.22635802]
[1771780471538,0.9076017,1949.1,1948.8,4.22635802]
[1771780474037,6.69688362,1949.0,1948.8,2.75937591]
[1771780474237,0.9076017,1949.0,1948.8,2.75937591]
[1771780476741,0.9076017,1949.1,1948.8,3.69564802]
[1771780477042,5.7916228,1949.0,1948.8,3.69564802]
[1771780477244,0.9076017,1949.1,1948.8,3.69564802]
[1771780477435,5.79295858,1949.0,1948.8,3.69564802]
[1771780477634,0.9076017,1949.1,1948.8,3.69564802]
[1771780477835,5.79295464,1949.0,1948.8,3.69564802]
[1771780478036,0.9076017,1949.1,1948.8,3.69564802]
[1771780478232,6.69620616,1949.0,1948.8,3.69564802]
[1771780478437,0.90325136,1949.0,1948.8,3.69564802]
[1771780478639,0.90325136,1949.1,1948.8,2.75937591]
[1771780478838,6.69801462,1949.0,1948.8,2.75937591]
[1771780479041,0.90325136,1949.0,1948.8,2.75937591]
[1771780479242,6.69835693,1948.9,1948.8,2.75937591]
[1771780481744,5.79510557,1948.9,1948.8,2.75937591]
[1771780482039,5.04053331,1948.9,1948.8,3.6350596]
[1771780482241,0.91528257,1949.1,1948.8,2.75937591]
[1771780482436,0.9154092,1949.0,1948.5,1.1794367]
[1771780482641,3.0233552,1949.0,1948.5,1.1794367]
[1771780483446,3.0233552,1949.0,1948.5,1.18350175]
[1771780483641,3.0233552,1949.0,1948.6,0.39298515]
[1771780486052,0.90969643,1948.9,1948.6,0.39298515]
[1771780486751,0.90969643,1948.9,1948.5,0.38445558]
[1771780489550,0.91164989,1948.8,1948.5,0.38445558]
[1771780490252,0.91164989,1948.8,1948.5,0.00406505]
[1771780490660,0.91164989,1948.8,1948.5,0.31453941]
[1771780490946,0.91164989,1948.8,1948.5,0.00406505]
[1771780491345,0.91164989,1948.8,1948.5,0.29138349]
[1771780494553,2.107946,1948.8,1948.5,0.29138349]
[1771780495457,0.91281532,1948.9,1948.5,0.29138349]
[1771780495754,3.02076132,1948.9,1948.5,0.29138349]
[1771780496153,2.107946,1948.8,1948.5,0.29138349]
[1771780500153,0.91235548,1949.0,1948.5,0.29138349]
[1771780500452,0.91264862,1949.1,1948.5,0.00406505]
[1771780501051,5.21176151,1949.1,1948.5,0.00406505]
[1771780501253,0.91303862,1949.0,1948.5,0.00406505]
[1771780501755,0.91303862,1948.9,1948.1,2.69857885]
[1771780501955,0.91303862,1948.9,1948.2,0.19897885]
[1771780502350,0.90595812,1948.8,1948.1,2.4996]
[1771780502755,0.90595812,1948.8,1948.1,2.50429368]
[1771780503348,0.90595812,1948.8,1948.1,2.69623341]
[1771780504356,0.90595812,1948.8,1948.2,0.15340818]
[1771780505460,0.90595812,1948.8,1948.1,2.63674558]
[1771780506356,0.90595812,1948.8,1948.2,0.11557072]
[1771780514169,0.90595812,1948.8,1948.1,2.50429368]
[1771780531594,0.9376224,1948.7,1948.1,2.50429368]
[1771780531797,0.94284925,1948.7,1948.1,2.50429368]
[1771780542004,0.94054793,1948.5,1948.1,1.34197959]
[1771780543003,6.77520699,1948.4,1948.1,1.34197959]
[1771780543197,5.83456426,1948.3,1948.1,1.34197959]
[1771780543403,6.7753027,1948.3,1948.1,1.34197959]
[1771780543602,0.94073844,1948.2,1948.1,1.34197959]
[1771780544403,0.94073844,1948.2,1948.1,0.00469368]
[1771780545701,4.29911289,1948.6,1948.1,0.00469368]
[1771780545899,0.94048122,1948.4,1948.1,0.00469368]
[1771780546106,6.79420534,1948.3,1948.1,0.00469368]
[1771780546307,0.94048122,1948.3,1948.1,0.00469368]
[1771780550507,0.94048122,1948.3,1947.7,2.15324458]
[1771780551507,0.94048122,1948.3,1947.7,2.15696434]
[1771780553207,0.94048122,1948.3,1947.7,0.97613716]
[1771780553602,0.94023192,1948.1,1947.7,0.97613716]
[1771780557102,0.94650269,1947.8,1947.5,1.98459431]
[1771780557304,0.94650269,1947.8,1947.5,1.37759131]
[1771780557505,5.83945372,1947.7,1947.5,0.23886773]
[1771780557806,5.47994007,1947.9,1947.5,0.23886773]
[1771780558009,5.83931813,1947.8,1947.5,0.24458944]
[1771780558308,5.83931813,1947.7,1947.5,0.24458944]
[1771780558508,1.18082718,1947.9,1947.5,0.24458944]
[1771780558708,0.22819066,1947.7,1947.5,0.24458944]
[1771780559106,0.22819066,1947.7,1947.2,0.65286375]
[1771780559708,0.2142857,1947.6,1947.2,0.65286375]
[1771780560106,0.2142857,1947.6,1947.2,0.65714916]
[1771780560809,0.2142857,1947.6,1947.2,0.00428541]
[1771780561111,0.2118555,1947.4,1947.2,0.00428541]
[1771780561411,0.21184278,1947.2,1946.5,0.65286375]
[1771780561815,0.19805917,1947.0,1946.5,0.65286375]
[1771780562307,0.20224255,1947.0,1946.5,0.656629]
[1771780564412,0.20218757,1946.8,1946.5,0.656629]
[1771780566908,41.98082718,1946.9,1946.5,0.656629]
[1771780567110,0.20968529,1947.3,1946.6,0.65286375]
[1771780567704,1.39547887,1947.4,1946.6,0.65286375]
[1771780567910,1.18082718,1947.6,1946.8,0.65286375]
[1771780567911,0.21465169,1947.5,1946.8,0.65286375]
[1771780568115,1.18082718,1947.4,1946.8,0.65286375]
[1771780568514,40.80517486,1947.5,1946.8,1.83369093]
[1771780568715,0.00517486,1947.5,1946.9,0.6715176]
[1771780569110,1.18082718,1947.8,1947.0,1.18082718]
[1771780569306,0.25909617,1947.9,1947.1,0.6715176]
[1771780569614,1.18082718,1948.0,1947.1,0.6715176]
[1771780569615,42.23972153,1948.0,1947.1,0.6715176]
[1771780570217,42.24352557,1948.0,1947.1,0.6715176]
[1771780570416,40.80380404,1948.0,1947.3,0.6715176]
[1771780571316,41.98463122,1948.0,1947.3,0.6715176]
[1771780572217,42.27247132,1948.0,1947.3,0.6715176]
[1771780573020,1.18082718,1947.8,1947.3,0.6715176]
[1771780573217,1.48119676,1947.8,1947.3,0.6715176]
[1771780574615,42.29257743,1948.0,1947.3,0.6715176]
[1771780574822,40.80380404,1948.0,1947.5,0.755338]
[1771780575015,0.00380404,1948.0,1947.5,0.755338]
[1771780575211,0.32367902,1948.0,1947.5,0.755338]
[1771780575412,41.12367902,1948.0,1947.5,0.755338]
[1771780575917,40.80380404,1948.0,1947.5,0.755338]
[1771780576916,41.12156969,1948.0,1947.5,0.755338]
[1771780579822,0.32571873,1947.7,1947.3,0.755338]
[1771780580420,1.50848073,1947.8,1947.3,0.755338]
[1771780583823,0.338872,1947.7,1947.3,0.755338]
[1771780584528,1.18082718,1947.8,1947.3,0.755338]
[1771780584827,42.32373328,1948.0,1947.3,0.755338]
[1771780585127,41.98463122,1948.0,1947.3,0.755338]
[1771780585628,42.32590461,1948.0,1947.3,0.755338]
[1771780586729,41.13458918,1948.0,1947.3,0.755338]
[1771780586930,1.18463122,1948.0,1947.3,0.755338]
[1771780587229,0.00380404,1948.0,1947.5,0.755338]
[1771780588027,1.18082718,1948.2,1947.5,0.755338]
[1771780588330,40.8,1948.3,1947.5,0.755338]
[1771780588632,1.18082718,1948.4,1947.7,0.755338]
[1771780589030,0.00526907,1948.4,1947.7,0.755338]
[1771780589330,0.00526907,1948.4,1947.9,0.755338]
[1771780589532,0.00526907,1948.4,1947.9,0.7616689]
[1771780589730,40.8,1948.7,1947.9,0.7616689]
[1771780590228,1.50665025,1948.8,1947.9,0.7616689]
[1771780590631,42.31232738,1948.8,1947.9,0.7616689]
[1771780590827,0.00567713,1948.8,1948.3,0.755338]
[1771780593534,1.52168132,1948.8,1948.3,0.755338]
[1771780594429,1.18650431,1948.8,1948.3,0.755338]
[1771780599330,0.00567713,1948.8,1948.3,0.755338]
[1771780600137,11.0103572,1949.0,1948.3,1.93616518]
[1771780600336,1.53700998,1949.2,1948.4,0.77420785]
[1771780600535,1.18082718,1949.2,1948.4,0.77420785]
[1771780600735,41.98082718,1949.2,1948.4,0.77420785]
[1771780601338,1.18477085,1949.2,1948.4,0.77420785]
[1771780601532,1.18477085,1949.2,1948.5,1.18082718]
[1771780601739,1.18477085,1949.2,1948.6,0.77420785]
[1771780602535,0.00394367,1949.2,1948.7,0.77420785]
[1771780602930,42.33856738,1949.6,1948.7,0.77420785]
[1771780603338,0.36167172,1949.5,1948.7,0.77420785]
[1771780603733,41.98082718,1949.6,1948.7,0.77420785]
[1771780603935,41.98668357,1949.6,1948.7,0.77420785]
[1771780604133,42.34906998,1949.6,1948.7,0.77420785]
[1771780605843,0.36965556,1949.5,1948.7,0.77420785]
[1771780606542,42.50181202,1949.6,1948.7,0.77420785]
[1771780607237,0.51570062,1949.5,1948.7,0.77420785]
[1771780607445,0.51570062,1949.4,1948.7,0.77420785]
[1771780607840,0.51617982,1949.3,1948.7,0.77420785]
[1771780613641,0.61375024,1949.1,1948.2,0.77420785]
[1771780614045,0.61960663,1949.6,1948.8,0.77420785]
[1771780615646,0.61118047,1949.5,1948.8,0.77420785]
[1771780617048,0.61118047,1949.5,1948.0,0.77420785]
[1771780617049,0.74826871,1948.8,1948.0,0.77420785]
[1771780619049,0.74826871,1949.3,1948.0,0.77420785]
[1771780619349,0.74826871,1949.1,1948.0,0.77420785]
[1771780626955,0.74826871,1948.9,1948.0,0.77420785]
[1771780642265,0.74826871,1948.9,1948.1,1.18042057]
[1771780642472,0.80267058,1949.1,1948.2,0.77995382]
[1771780642670,6.60688111,1949.0,1948.2,0.77995382]
[1771780642871,0.80267058,1949.0,1948.2,0.77995382]
[1771780644767,0.80267058,1949.2,1948.2,0.77995382]
[1771780644968,6.61052814,1949.1,1948.2,0.77995382]
[1771780645276,0.80267058,1949.1,1948.2,0.77995382]
[1771780646173,5.81455825,1949.0,1948.2,0.77995382]
[1771780646375,0.80267058,1949.1,1948.2,0.77995382]
[1771780646574,5.81418547,1949.0,1948.2,0.77995382]
[1771780646769,0.80267058,1949.1,1948.2,0.77995382]
[1771780647075,5.81418198,1949.0,1948.2,0.77995382]
[1771780647273,0.80267058,1949.1,1948.2,0.77995382]
[1771780647573,5.81409279,1949.0,1948.2,0.77995382]
[1771780647773,0.80267058,1949.1,1948.2,0.77995382]
[1771780648073,5.81409379,1949.0,1948.2,0.77995382]
[1771780648272,0.80267058,1949.1,1948.2,0.77995382]
[1771780648473,5.81420747,1949.0,1948.2,0.77995382]
[1771780648671,0.80267058,1949.1,1948.2,0.77995382]
[1771780648871,5.8142054,1949.0,1948.2,0.77995382]
[1771780649073,0.80267058,1949.1,1948.2,0.77995382]
[1771780649269,5.81407736,1949.0,1948.2,0.77995382]
[1771780649468,0.80267058,1949.1,1948.2,0.77995382]
[1771780651177,0.80267058,1949.1,1948.3,0.77995382]
[1771780656670,0.80267058,1948.0,1947.2,0.77995382]
[1771780656980,0.80267058,1948.0,1947.3,8.79617509]
[1771780657174,0.80267058,1948.0,1947.3,0.77995382]
[1771780657679,0.80640038,1948.0,1947.3,0.78552149]
[1771780657980,0.80640038,1948.0,1947.3,0.00556767]
[1771780658274,0.80640038,1948.0,1947.3,8.02178894]
[1771780658781,0.80640038,1948.0,1947.3,9.06843782]
[1771780662582,0.80640038,1948.0,1947.4,1.04664888]
[1771780663287,0.80640038,1948.0,1947.3,8.02178894]
[1771780663885,0.80640038,1948.0,1947.3,9.06843782]
[1771780664782,0.80640038,1948.0,1947.4,1.04664888]
[1771780665485,0.80640038,1948.0,1947.6,1.04664888]
[1771780665983,0.80640038,1948.0,1947.5,9.06287015]
[1771780667384,0.80640038,1948.0,1947.5,1.04664888]
[1771780670283,0.80640038,1948.0,1947.4,1.04664888]
[1771780674691,0.80640038,1948.0,1947.5,9.06287015]
[1771780675387,0.80640038,1948.0,1947.5,1.04664888]
[1771780679289,0.80640038,1948.0,1947.4,1.04664888]
[1771780679491,0.80640038,1948.0,1947.4,9.06287015]
[1771780679891,0.80640038,1948.0,1947.5,1.04664888]
[1771780681191,2.29072908,1947.8,1947.5,1.04664888]
[1771780682287,2.29072908,1947.6,1946.7,1.04664888]
[1771780682495,1.18159569,1947.4,1946.7,1.04664888]
[1771780682994,1.10913339,1947.5,1946.7,1.04664888]
[1771780683494,1.10913339,1947.5,1946.7,1.05115552]
[1771780683795,1.18159569,1947.6,1946.8,1.04664888]
[1771780687298,2.29072908,1947.6,1946.8,1.04664888]
[1771780689106,1.36138567,1947.5,1946.8,1.04664888]
[1771780696010,1.36138567,1947.5,1946.8,21.04664888]
[1771780696211,1.36138567,1947.5,1946.9,1.3296974]
[1771780706625,1.18159569,1947.2,1946.9,1.3296974]
[1771780706825,1.2929735,1947.1,1946.7,1.33420404]
[1771780709229,1.2929735,1947.1,1946.7,0.00450664]
[1771780709630,1.2929735,1947.1,1946.7,1.33420404]
[1771780710732,1.18159569,1947.6,1946.7,1.33420404]
[1771780710733,1.2929735,1947.5,1946.8,1.3296974]
[1771780714329,1.2929735,1947.5,1946.7,1.18610233]
[1771780714330,1.2929735,1947.5,1946.7,1.33420404]
[1771780714536,1.2929735,1947.1,1946.7,1.33420404]
[1771780716530,1.2929735,1947.1,1946.0,6.442]
[1771780716531,1.2929735,1946.7,1946.3,1.3296974]
[1771780717431,1.2929735,1946.9,1946.3,1.33394006]
[1771780717632,1.2929735,1947.1,1946.5,1.3296974]
[1771780724640,1.94688845,1946.9,1946.3,1.81147611]
[1771780726536,1.94688845,1946.9,1946.3,0.00424266]
[1771780728339,1.94688845,1946.9,1946.3,1.81147611]
[1771780733046,1.94688845,1946.9,1946.3,0.00424266]
[1771780733843,1.94688845,1946.9,1946.0,0.25703]
[1771780733844,1.94688845,1946.7,1945.8,1.80723345]
[1771780734845,1.94688845,1946.7,1945.8,1.81197964]
[1771780737246,1.94688845,1946.7,1946.0,1.80723345]
[1771780740647,1.94688845,1947.2,1946.0,1.80723345]
[1771780740950,1.94688845,1947.0,1946.2,1.80723345]
[1771780741947,1.94688845,1947.0,1946.2,2.98992952]
[1771780742250,1.94688845,1947.0,1946.3,1.80723345]
[1771780743448,1.94688845,1947.5,1946.5,1.80723345]
[1771780743650,1.94688845,1947.3,1946.5,1.80723345]
[1771780747952,4.28479247,1947.5,1947.0,1.80723345]
[1771780748253,1.94688845,1947.6,1947.0,1.80723345]
[1771780750152,1.66125282,1947.9,1947.0,1.80723345]
[1771780776175,1.82160614,1947.7,1947.0,1.80723345]
[1771780781077,1.82160614,1947.7,1947.0,9.88476909]
[1771780781279,1.82160614,1947.7,1947.1,1.7219435]
[1771780789289,1.82160614,1947.7,1947.2,1.7219435]
[1771780789490,1.82160614,1947.7,1947.2,1.72815426]
[1771780794994,1.71223462,1947.9,1947.2,1.72815426]
[1771780795194,1.71223462,1947.9,1947.6,1.7219435]
[1771780795394,0.86125649,1947.9,1947.6,1.7219435]
[1771780796496,0.86757804,1947.9,1947.6,1.7219435]
[1771780797398,0.86757804,1947.9,1947.4,1.7219435]
[1771780797799,0.86757804,1947.9,1947.3,1.7219435]
[1771780798206,1.13812856,1947.8,1947.3,1.7219435]
[1771780798496,1.13812856,1947.8,1947.2,1.72815426]
[1771780802197,1.04715528,1947.6,1947.2,0.00621076]
[1771780802402,1.04715528,1947.6,1947.0,0.25689]
[1771780803104,1.04715528,1947.6,1947.0,1.9788335]
[1771780803495,1.04715528,1947.6,1947.0,1.98474818]
[1771780803898,1.04715528,1947.6,1947.0,1.72785818]
[1771780820615,0.62500538,1947.8,1947.0,1.72785818]
[1771780820916,0.62500538,1947.8,1947.1,1.18150801]
[1771780821217,0.62500538,1947.8,1947.2,1.65503036]
[1771780822613,0.61664055,1947.6,1947.0,1.66094504]
[1771780822818,0.60889226,1947.4,1947.0,0.00591468]
[1771780823116,0.60889226,1947.2,1946.8,1.65503036]
[1771780823713,0.60889226,1947.2,1946.6,1.65503036]
[1771780824112,0.60049198,1947.0,1946.6,0.00551855]
[1771780824715,0.60049198,1947.0,1946.6,1.66054891]
[1771780826717,0.62164574,1947.3,1946.8,1.65503036]
[1771780834017,0.49939096,1947.7,1947.0,1.65503036]
[1771780834222,0.49939096,1947.6,1947.0,1.65503036]
[1771780834423,0.49003457,1947.4,1947.0,1.65503036]
[1771780850236,5.94223093,1947.3,1947.0,1.65503036]
[1771780850441,0.49003457,1947.4,1947.0,1.65503036]
[1771780850642,5.94133159,1947.3,1947.0,1.65503036]
[1771780850836,0.49003457,1947.4,1947.0,1.65503036]
[1771780851037,5.94133518,1947.3,1947.0,1.65503036]
[1771780851239,0.49003457,1947.4,1947.0,1.65503036]
[1771780851437,5.94410857,1947.3,1947.0,1.65503036]
[1771780851639,0.49003457,1947.4,1947.0,1.65503036]
[1771780851842,5.94414798,1947.3,1947.0,1.65503036]
[1771780852044,0.38044633,1947.5,1947.0,1.65503036]
[1771780852244,0.38044633,1947.4,1947.0,1.65503036]
[1771780852442,5.94414563,1947.3,1947.0,1.65503036]
[1771780858451,0.38044633,1947.4,1947.0,1.65503036]
[1771780860549,0.30702882,1947.5,1947.0,1.65503036]
[1771780860751,5.94937311,1947.4,1947.0,1.65503036]
[1771780860949,0.30702882,1947.5,1947.0,1.65503036]
[1771780861153,5.94900226,1947.4,1947.0,1.65503036]
[1771780861449,0.30702882,1947.5,1947.0,1.65503036]
[1771780861651,6.24772384,1947.4,1947.0,1.65503036]
[1771780861850,0.29887208,1947.4,1947.0,1.65503036]
[1771780862651,0.28327409,1947.6,1947.0,1.65503036]
[1771780862950,5.94843694,1947.5,1947.0,1.65503036]
[1771780863151,0.28327409,1947.6,1947.0,1.65503036]
[1771780863353,0.28327409,1947.4,1947.0,1.65503036]
[1771780864955,0.27215097,1947.6,1947.0,1.65503036]
[1771780865255,6.21859985,1947.5,1947.0,1.65503036]
[1771780865453,0.27215097,1947.5,1947.0,1.65503036]
[1771780869553,4.53760569,1947.8,1947.0,1.65503036]
[1771780869857,6.17105924,1947.7,1947.0,1.65503036]
[1771780870056,0.22701045,1947.7,1947.0,1.65503036]
[1771780872057,0.21990339,1947.9,1947.0,1.65503036]
[1771780872254,5.9171034,1947.8,1947.0,1.65503036]
[1771780872453,0.21296622,1947.8,1947.0,1.65503036]
[1771780878555,0.00632155,1947.9,1947.0,1.65503036]
[1771780879160,0.17257224,1947.9,1947.0,1.65503036]
[1771780886163,0.1140786,1947.7,1947.0,1.65503036]
[1771780903784,5.91618395,1947.6,1947.0,1.65503036]
[1771780903989,5.91618395,1947.5,1947.0,1.65503036]
[1771780904281,4.30317374,1947.8,1947.0,1.65503036]
[1771780904582,5.91959269,1947.7,1947.0,1.65503036]
[1771780904780,5.91959269,1947.6,1947.0,1.65503036]
[1771780904985,5.91959269,1947.5,1947.0,1.65503036]
[1771780905186,4.30317374,1947.8,1947.0,1.65503036]
[1771780905379,5.91869645,1947.7,1947.0,1.65503036]
[1771780905579,5.91869645,1947.6,1947.0,1.65503036]
[1771780905780,5.91869645,1947.5,1947.0,1.65503036]
[1771780906085,4.30317374,1947.8,1947.0,1.65503036]
[1771780906279,5.91799153,1947.7,1947.0,1.65503036]
[1771780906581,5.91799153,1947.6,1947.0,1.65503036]
[1771780906778,5.91799153,1947.5,1947.0,1.65503036]
[1771780906979,4.30317374,1947.8,1947.0,1.65503036]
[1771780907178,5.91799267,1947.7,1947.0,1.65503036]
[1771780907383,5.91799267,1947.6,1947.0,1.65503036]
[1771780907585,4.30317374,1947.8,1947.0,1.65503036]
[1771780907883,5.91741242,1947.7,1947.0,1.65503036]
[1771780908079,5.91741242,1947.6,1947.0,1.65503036]
[1771780908279,4.30317374,1947.8,1947.0,1.65503036]
[1771780908480,5.91692541,1947.7,1947.0,1.65503036]
[1771780908681,5.91692541,1947.6,1947.0,1.65503036]
[1771780908883,4.30317374,1947.8,1947.0,1.65503036]
[1771780909188,5.91692541,1947.7,1947.0,1.65503036]
[1771780909389,5.91692541,1947.6,1947.0,1.65503036]
[1771780909589,4.30317374,1947.8,1947.0,1.65503036]
[1771780909784,5.9174657,1947.7,1947.0,1.65503036]
[1771780909988,5.9174657,1947.6,1947.0,1.65503036]
[1771780910191,4.30317374,1947.8,1947.0,1.65503036]
[1771780910392,5.91748188,1947.7,1947.0,1.65503036]
[1771780910691,5.91748188,1947.6,1947.0,1.65503036]
[1771780910992,4.30317374,1947.8,1947.0,1.65503036]
[1771780911192,10.22061788,1947.8,1947.0,1.65503036]
[1771780913093,5.91744414,1947.7,1947.0,1.65503036]
[1771780913294,5.91744414,1947.6,1947.1,1.48767881]
[1771780913489,4.30317374,1947.8,1947.1,1.48767881]
[1771780913692,10.22051258,1947.8,1947.1,1.48767881]
[1771780914195,5.91733884,1947.7,1947.1,1.48767881]
[1771780930600,5.91733884,1947.6,1947.1,1.48767881]
[1771780930806,5.49123362,1947.9,1947.1,1.48767881]
[1771780931002,5.91894184,1947.8,1947.1,1.48767881]
[1771780931208,5.91894184,1947.7,1947.1,1.48767881]
[1771780931410,5.91894184,1947.6,1947.1,1.48767881]
[1771780931610,5.49123362,1947.9,1947.1,1.48767881]
[1771780931806,5.91943107,1947.8,1947.1,1.48767881]
[1771780932008,5.91943107,1947.7,1947.1,1.48767881]
[1771780932209,5.91943107,1947.6,1947.1,1.48767881]
[1771780932512,5.49123362,1947.9,1947.1,1.48767881]
[1771780932809,5.91999665,1947.8,1947.1,1.48767881]
[1771780933024,5.91999665,1947.7,1947.1,1.48767881]
[1771780933207,5.91999665,1947.6,1947.1,1.48767881]
[1771780933406,4.30317374,1947.8,1947.1,1.48767881]
[1771780933607,5.92072199,1947.7,1947.1,1.48767881]
[1771780933807,5.92072199,1947.6,1947.1,1.48767881]
[1771780934008,4.30317374,1947.8,1947.1,1.48767881]
[1771780934208,5.92070854,1947.7,1947.1,1.48767881]
[1771780934408,5.92070854,1947.6,1947.1,1.48767881]
[1771780934609,4.30317374,1947.8,1947.1,1.48767881]
[1771780934808,5.91750382,1947.7,1947.1,1.48767881]
[1771780935108,5.91750382,1947.6,1947.1,1.48767881]
[1771780935310,4.30317374,1947.8,1947.1,1.48767881]
[1771780935514,10.22044466,1947.8,1947.1,1.48767881]
[1771780940211,5.91727092,1947.8,1947.1,1.48767881]
[1771780940416,5.91727092,1947.7,1947.1,1.48767881]
[1771780940612,5.91727092,1947.6,1947.1,1.48767881]
[1771780940817,5.49123362,1947.9,1947.1,1.48767881]
[1771780941021,5.91662105,1947.8,1947.1,1.49767881]
[1771780941316,5.91662105,1947.7,1947.1,1.49767881]
[1771780941516,5.91662105,1947.6,1947.1,1.49767881]
[1771780941713,5.49123362,1947.9,1947.1,1.49767881]
[1771780941914,5.91654431,1947.8,1947.1,1.49767881]
[1771780942113,5.91654431,1947.7,1947.1,1.49767881]
[1771780942319,5.91654431,1947.6,1947.1,1.49767881]
[1771780942619,5.49123362,1947.9,1947.1,1.49767881]
[1771780942813,5.91650844,1947.8,1947.1,1.49767881]
[1771780943118,5.91650844,1947.7,1947.1,1.49767881]
[1771780943422,5.91650844,1947.6,1947.1,1.49767881]
[1771780943616,5.49123362,1947.9,1947.1,1.49767881]
[1771780943817,5.91653594,1947.8,1947.1,1.49767881]
[1771780944014,5.91653594,1947.7,1947.1,1.49767881]
[1771780944215,5.91653594,1947.6,1947.1,1.49767881]
[1771780944419,5.49123362,1947.9,1947.1,1.49767881]
[1771780944620,5.91646599,1947.8,1947.1,1.49767881]
[1771780944917,5.91646599,1947.7,1947.1,1.49767881]
[1771780945218,5.91646599,1947.6,1947.1,1.49767881]
[1771780945418,5.49123362,1947.9,1947.1,1.49767881]
[1771780945618,5.91685086,1947.8,1947.1,1.49767881]
[1771780945824,5.91685086,1947.7,1947.1,1.49767881]
[1771780946015,5.91685086,1947.6,1947.1,1.49767881]
[1771780946215,5.49123362,1947.9,1947.1,1.49767881]
[1771780946418,5.91641046,1947.8,1947.1,1.49767881]
[1771780946716,5.91641046,1947.7,1947.1,1.49767881]
[1771780946918,5.91641046,1947.6,1947.1,1.49767881]
[1771780947117,5.49123362,1947.9,1947.1,1.49767881]
[1771780947318,5.91692873,1947.8,1947.1,1.49767881]
[1771780947516,5.91692873,1947.7,1947.1,1.49767881]
[1771780947818,5.91692873,1947.6,1947.1,1.49767881]
[1771780948017,5.49123362,1947.9,1947.1,1.49767881]
[1771780948220,5.9169219,1947.8,1947.1,1.49767881]
[1771780948411,5.9169219,1947.7,1947.1,1.49767881]
[1771780948616,5.9169219,1947.6,1947.1,1.49767881]
[1771780948918,5.49123362,1947.9,1947.1,1.49767881]
[1771780949116,5.91695344,1947.8,1947.1,1.49767881]
[1771780949319,5.91695344,1947.7,1947.1,1.49767881]
[1771780949619,5.91695344,1947.6,1947.1,1.49767881]
[1771780949819,5.49123362,1947.9,1947.1,1.49767881]
[1771780950015,5.91698258,1947.8,1947.1,1.49767881]
[1771780950216,5.91698258,1947.7,1947.1,1.49767881]
[1771780950416,5.91698258,1947.6,1947.1,1.49767881]
[1771780950714,5.49123362,1947.9,1947.1,1.49767881]
[1771780950915,5.91702523,1947.8,1947.1,1.49767881]
[1771780951121,5.91702523,1947.7,1947.1,1.49767881]
[1771780951315,5.91702523,1947.6,1947.1,1.49767881]
[1771780951516,5.49123362,1947.9,1947.1,1.49767881]
[1771780951711,5.9170961,1947.8,1947.1,1.49767881]
[1771780951918,5.9170961,1947.7,1947.1,1.49767881]
[1771780952119,5.9170961,1947.6,1947.1,1.49767881]
[1771780952319,5.49123362,1947.9,1947.1,1.49767881]
[1771780952520,5.91719229,1947.8,1947.1,1.49767881]
[1771780952724,5.91719229,1947.7,1947.1,1.49767881]
[1771780952920,5.91719229,1947.6,1947.1,1.49767881]
[1771780953222,5.49123362,1947.9,1947.1,1.49767881]
[1771780953422,5.91729435,1947.8,1947.1,1.49767881]
[1771780953623,5.49123362,1947.9,1947.1,1.49767881]
[1771780953624,5.91729435,1947.7,1947.1,1.49767881]
[1771780953921,5.91729435,1947.6,1947.1,1.49767881]
[1771780954126,5.49123362,1947.9,1947.1,1.49767881]
[1771780954319,5.91744776,1947.8,1947.1,1.49767881]
[1771780954624,5.91744776,1947.7,1947.1,1.49767881]
[1771780954824,5.91744776,1947.6,1947.1,1.49767881]
[1771780955025,5.49139801,1947.9,1947.1,1.49767881]
[1771780955324,5.91744776,1947.8,1947.1,1.49767881]
[1771780955517,5.91744776,1947.7,1947.1,1.49767881]
[1771780955715,5.91744776,1947.6,1947.1,1.49767881]
[1771780956013,5.49139801,1947.9,1947.1,1.49767881]
[1771780956218,5.91769543,1947.8,1947.1,1.49767881]
[1771780956423,5.91769543,1947.7,1947.1,1.49767881]
[1771780956624,5.91769543,1947.6,1947.1,1.49767881]
[1771780956927,4.30965968,1947.9,1947.1,1.49767881]
[1771780957125,5.91796625,1947.8,1947.1,1.49767881]
[1771780957324,4.30965968,1947.9,1947.1,1.49767881]
[1771780957325,5.91796625,1947.7,1947.1,1.49767881]
[1771780957525,4.30965968,1947.9,1947.1,1.49767881]
[1771780957728,5.91815323,1947.8,1947.1,1.49767881]